[Event "45th FIDE Olympiad 2024"]
[Site "Budapest"]
[Date "2024.09.19"]
[Round "8.16"]
[White "Lagarde, Maxime"]
[Black "Aronian, Levon"]
[Result "0-1"]
[ECO "C13"]
[WhiteElo "2598"]
[BlackElo "2729"]
[Annotator "TA"]
[PlyCount "78"]
[EventDate "2024.09.05"]
[EventType "team-tourn"]
[EventCountry "HUN"]
[SourceTitle "playchess.com"]
[Source "ChessBase"]
[SourceQuality "1"]
[WhiteTeam "France"]
[BlackTeam "United States of America"]
[WhiteTeamCountry "FRA"]
[TimeControl "40/5400+30:1800+30"]

{[%evp 11,78,19,28,0,18,4,18,12,0,21,25,41,45,37,32,32,51,31,26,53,32,36,44,24,51,33,52,-87,-82,-222,-230,-233,-228,-223,-104,-91,-103,-204,-165,-161,-166,-155,-154,-160,-149,-333,-333,-1243,-1237,-1218,-1228,-1189,-1156,-1684,-1443,-1774,-1751,-1529,-1481,-1251,-1218,-29972,-29973,-6241,-1796,-29984,-29979,-29967,-2002]} 1. e4 {[%emt 0:00:02]} e6 {[%emt 0:00:06]} 2. d4 {[%emt 0:00:41]} d5 {[%emt 0:00:06]} 3. Nc3 {[%emt 0:00:25]} Nf6 {[%emt 0:00:06]} 4. Bg5 {[%emt 0:00:16]} dxe4 {[%emt 0:01:24]} 5. Nxe4 {[%emt 0:00:05]} Be7 {[%emt 0:00:06]} 6. Bxf6 {[%emt 0:01:18]} gxf6 {[%emt 0:00:24]} 7. Nc3 {[%emt 0:00:09]} Nc6 {[%emt 0:05:50][%cal Bb8c6,Bc6a7,Ba7b5,Bb5c3][%mdl 32]} 8. Nge2 {[%emt 0:05:04]} a6 {[%emt 0:05:33]} 9. g3 {[%emt 0:03:53] The position is equal.} e5 {[%emt 0:01:37][%cal Be6e5,Be5e4][%mdl 32]} 10. d5 {[%emt 0:03:34]} Na7 {[%emt 0:01:00]} 11. Qd3 {[%emt 0:03:39]} Qd6 {[%emt 0:03:26]} 12. O-O-O {[%emt 0:05:10]} f5 {[%emt 0:01:21] Inhibits Ne4.} 13. h4 {[%emt 0:05:56]} Bd7 {[%emt 0:07:01]} 14. Bh3 {[%emt 0:01:03]} e4 $1 {[%emt 0:01:00]} 15. Qe3 {[%emt 0:02:42]} Nb5 {[%emt 0:02:14]} 16. f3 {[%emt 0:10:19]} Nxc3 {[%emt 0:01:01]} 17. Nxc3 {[%emt 0:00:35]} Rg8 {[%emt 0:00:05]} 18. fxe4 {[%emt 0:07:25] And now e5 would win.} Rxg3 {[%emt 0:00:28]} 19. Qd4 {[%emt 0:00:33]} (19. Qf2 $14 {keeps the upper hand.}) 19... Bf6 $17 {[%emt 0:05:30] Black is more active.} 20. e5 {[%emt 0:03:12]} (20. Qf2 $17 {was worth a try.}) 20... Bxe5 $19 {[%emt 0:00:41]} (20... Qxe5 $2 21. Rde1 O-O-O 22. Rxe5 $18) 21. Rde1 {[%emt 0:00:58]} f6 {[%emt 0:00:08]} 22. Qf2 {[%emt 0:00:32] [#]} Rxc3 {[%emt 0:12:17][%mdl 512]} 23. bxc3 $17 {[%emt 0:02:30]} O-O-O {[%emt 0:03:45]} 24. Bxf5 {[%emt 0:02:05]} (24. Qa7 $17 c6 25. Qb6) 24... Qa3+ {[%emt 0:02:44]} (24... Qxd5 25. Rd1 Qxa2 26. Rxd7 Rxd7 (26... Qa1+ 27. Kd2 $11) 27. Bxd7+ Kxd7 28. Rd1+ Kc6 29. Qf3+ Kc5 30. Rd7 $11 (30. Qxb7 Bf4+ 31. Rd2 Qa1+ 32. Qb1 Bxd2+ 33. Kxd2 Qxb1 34. Ke2 Qxc2+ 35. Kf3 Qf5+ 36. Kg2 Kd5 37. Kg3 Ke4 38. Kg2 Qf3+ 39. Kg1 Qg3+ 40. Kf1 Ke3 41. h5 Qf2#)) (24... Bf4+ 25. Kb2 Bxf5 26. Rhf1 $14) 25. Kd1 {[%emt 0:00:19]} (25. Kb1 Bxc3 (25... Qxc3 26. Rxe5 Qxe5 27. Bxd7+ Rxd7 28. Re1 $17) 26. Bxd7+ Kb8) 25... Qxa2 {[%emt 0:04:02]} (25... Bxc3 $2 26. Bxd7+ Kb8 27. Rh3 $18) (25... Qxc3 26. Rh3 Qa1+ 27. Ke2 Qxa2 28. Bxd7+ Rxd7 29. Qf5 $17) 26. Rh3 {[%emt 0:00:41] [#]} Bxf5 {[%emt 0:00:27]} (26... Qxd5+ 27. Rd3 Qb5 28. Kc1 $11) 27. Qxf5+ {[%emt 0:00:04]} Kb8 {[%emt 0:00:04] Chess con chili.} 28. Rd3 {[%emt 0:03:42]} (28. c4 $17) 28... Bxc3 $1 $19 {[%emt 0:00:21]} (28... Rxd5 29. Rxd5 Qxd5+ 30. Qd3 $15 (30. Kc1 Qc5 $17)) 29. Rf1 $2 {[%emt 0:06:25]} (29. Rxc3 Rxd5+ (29... Qxd5+ $2 {too greedy.} 30. Qxd5 Rxd5+ 31. Kc1 $18) 30. Qxd5 Qxd5+ 31. Kc1) 29... Qb1+ {[%emt 0:02:58]} 30. Ke2 {[%emt 0:00:05]} Qxc2+ {[%emt 0:00:05]} 31. Kf3 {[%emt 0:00:12]} Rg8 {[%emt 0:01:14]} 32. Rf2 {[%emt 0:01:25]} Qb1 {[%emt 0:04:08][%cal Oh7h5] Hoping for ...h5!} 33. Qxh7 {[%emt 0:03:05]} Qh1+ {[%emt 0:01:19]} 34. Kf4 {[%emt 0:00:39]} Be5+ {[%emt 0:00:06]} 35. Kf5 {[%emt 0:00:07]} Qg1 {[%emt 0:00:04][%csl Gg8][%cal Rg1g4]} 36. Ke6 {[%emt 0:01:08]} Qg4+ {[%emt 0:00:06]} 37. Rf5 {[%emt 0:01:33]} Bd6 {[%emt 0:00:34]} (37... Rf8 $142 38. Rdf3 Bd4 39. Re3 Bxe3 40. Qf7 Qe4+ (40... Rxf7 {is a self mate.} 41. Kxf7 Qxf5 42. Ke7 Qxd5 43. Kxf6 Bd4+ 44. Kg6 Qe6+ 45. Kh5 c6 46. Kg5 Be3+ 47. Kh5 Qf5#) 41. Kxf6 Rxf7+ 42. Kxf7 Qxf5+ 43. Kg7 Bd4+ (43... Qxd5 44. Kf6 Bd4+ 45. Kg6 Qe6+ 46. Kh5 a5 47. Kg5 Be3+ 48. Kh5 Qf5#) 44. Kh6 Qg4 (44... Qxd5 {leads to mate.} 45. Kg6 Qe6+ 46. Kh5 a5 47. Kg5 Be3+ 48. Kh5 Qf5#) 45. d6 cxd6 46. Kh7 Qg7#) 38. Rdf3 {[%emt 0:09:52]} Re8+ {[%emt 0:02:01]} 39. Kxf6 {[%emt 0:00:06]} Rf8+ {[%emt 0:00:10] Weighted Error Value: White=0.95/Black=0.16 (very precise) .  Loses game:     	White=1     	---        Mistake:       	White=4     	Black=1      Inaccurate:     	---       	Black=1      OK:         	White=8     	Black=7      Best:        	White=2     	Black=4      Strong:       	---       	Black=2} (39... Be7+ $142 40. Qxe7 Qxh4+ (40... Rxe7 $2 41. Kxe7 Qxh4+ 42. Kd7 $19) 41. Rg5 Rxe7 42. Kxe7 Qxg5+ 43. Ke6 Qg4+ 44. Rf5 a5 45. Kf6 a4 46. Ke5 a3 47. Rf8+ Ka7 48. Rf4 Qg5+ 49. Rf5 Qe7+ 50. Kd4 Qb4+ 51. Ke5 Qe1+ 52. Kf6 a2 53. Kf7 a1=Q (53... a1=B $2 54. d6 $19) 54. Rf6 Qee5 55. Rg6 Qxd5+ 56. Re6 Qh8 57. Ke7 Qg7+ 58. Ke8 Qdd7#) 0-1

[Event "45th FIDE Olympiad 2024"]
[Site "Budapest"]
[Date "2024.09.19"]
[Round "8.16"]
[White "Nyola, Wasswa Mark"]
[Black "Daniel, Cyrus"]
[Result "1-0"]
[WhiteElo "2070"]
[BlackElo "1759"]
[PlyCount "81"]
[EventDate "2024.09.05"]
[EventType "team-tourn"]
[EventCountry "HUN"]
[WhiteTeam "Uganda"]
[BlackTeam "Saint Lucia"]
[WhiteTeamCountry "UGA"]
[TimeControl "40/5400+30:1800+30"]

1. d4 d5 2. Nf3 Nf6 3. c4 c6 4. Nc3 dxc4 5. a4 Bf5 6. Ne5 Nbd7 7. Nxc4 Nb6 8. Ne5 a5 9. f3 Nfd7 10. Nxd7 Nxd7 11. e4 Bg6 12. h4 h6 13. h5 Bh7 14. Be3 e6 15. Qd2 Bb4 16. Bc4 Qe7 17. g4 Rd8 18. Qe2 e5 19. d5 cxd5 20. Bxd5 O-O 21. O-O Nf6 22. Bb3 Bc5 23. Nd5 Nxd5 24. Bxd5 Bxe3+ 25. Qxe3 Qb4 26. Qc3 Qb6+ 27. Rf2 Rxd5 28. exd5 e4 29. Re1 exf3 30. Qxf3 f5 31. Qe3 Qb4 32. Rf4 Qxb2 33. d6 Qf6 34. d7 Qd6 35. Rd4 Qf6 36. Qe5 Qh4 37. Re2 fxg4 38. Qd5+ Kh8 39. d8=Q Qg3+ 40. Qg2 Qxg2+ 41. Kxg2 1-0

[Event "45th FIDE Olympiad 2024"]
[Site "Budapest"]
[Date "2024.09.19"]
[Round "8.17"]
[White "Wei, Yi"]
[Black "Deac, Bogdan-Daniel"]
[Result "1/2-1/2"]
[ECO "C54"]
[WhiteElo "2762"]
[BlackElo "2680"]
[Annotator "TA"]
[PlyCount "143"]
[EventDate "2024.09.05"]
[EventType "team-tourn"]
[EventCountry "HUN"]
[SourceTitle "playchess.com"]
[Source "ChessBase"]
[SourceQuality "1"]
[WhiteTeam "China"]
[BlackTeam "Romania"]
[WhiteTeamCountry "CHN"]
[BlackTeamCountry "ROU"]
[TimeControl "40/5400+30:1800+30"]

{[%evp 61,143,42,104,15,16,0,3,15,11,36,22,14,25,20,19,21,58,2,0,0,0,0,3,0,0,0,0,0,0,0,0,0,0,0,0,0,0,0,8,0,0,0,8,8,8,8,8,0,0,0,0,2,8,8,13,8,8,8,8,0,0,0,0,0,0,0,0,0,0,0,0,0,0,0,0,0,0,0,0,0,0,0,0,0]} 1. e4 {[%emt 0:00:06]} e5 {[%emt 0:00:03]} 2. Nf3 {[%emt 0:00:39]} Nc6 {[%emt 0:00:02]} 3. Bc4 {[%emt 0:00:10]} Bc5 {[%emt 0:00:07]} 4. c3 {[%emt 0:00:20]} Nf6 {[%emt 0:00:02]} 5. d3 {[%emt 0:00:14]} d6 {[%emt 0:00:04]} 6. Bg5 {[%emt 0:00:19]} h6 {[%emt 0:00:12]} 7. Bh4 {[%emt 0:00:07]} a6 {[%emt 0:00:08]} 8. Nbd2 {[%emt 0:00:28] C54: Giuoco Piano: 4 c3 Nf6, main lines with 5 d4 and 5 d3.} Qe7 {[%emt 0:00:20]} 9. b4 {[%emt 0:01:26]} Ba7 {[%emt 0:00:17]} 10. O-O {[%emt 0:00:25]} g5 {[%emt 0:08:33]} 11. Bg3 {[%emt 0:00:07]} Nd7 {[%emt 0:00:59]} 12. a4 {[%emt 0:00:17]} Nf8 {[%emt 0:00:20]} 13. Kh1 {[%emt 0:00:26]} Ng6 {[%emt 0:01:44]} 14. b5 {[%emt 0:00:32]} Na5 {[%emt 0:09:04]} 15. Ba2 $146 {[%emt 0:19:25]} ({Predecessor:} 15. Bd5 c6 16. bxc6 bxc6 17. Ba2 h5 18. h3 g4 19. Ng1 Qg5 20. d4 h4 21. Bh2 {1-0 Fedorov,A (2447)-Gochelashvili,D (2304) Tamil Nadu IM 7th 2023 (5)}) 15... h5 {[%emt 0:12:06]} 16. h3 {[%emt 0:02:04]} g4 {[%emt 0:01:41]} 17. Ng1 {[%emt 0:00:12]} Be6 {[%emt 0:11:28]} 18. Bh2 {[%emt 0:19:42]} Bxa2 {[%emt 0:10:28]} 19. Rxa2 {[%emt 0:00:06]} Qe6 {[%emt 0:00:03]} 20. Rb2 {[%emt 0:04:10]} Bb6 {[%emt 0:00:28]} 21. Qe2 {[%emt 0:18:17]} Rg8 {[%emt 0:02:54]} 22. bxa6 {[%emt 0:04:24]} bxa6 {[%emt 0:22:33]} 23. Rfb1 {[%emt 0:00:24]} Qf6 {[%emt 0:04:09]} 24. hxg4 {[%emt 0:06:35]} hxg4 {[%emt 0:00:22]} 25. Qxg4 {[%emt 0:00:20]} Ke7 {[%emt 0:00:51]} 26. Qf3 {[%emt 0:02:35]} Qh8 {[%emt 0:00:53]} 27. g3 {[%emt 0:07:00]} Qh6 {[%emt 0:04:35]} 28. Qf5 {[%emt 0:00:56]} Rh8 {[%emt 0:01:52]} 29. Ndf3 {[%emt 0:01:23]} f6 {[%emt 0:00:44]} 30. d4 {[%emt 0:02:14]} Qh5 {[%emt 0:07:13]} 31. Ne2 {[%emt 0:01:31]} Rag8 {[%emt 0:00:28] [#]} (31... Rac8 $14) 32. Qxh5 {[%emt 0:01:39]} ({White should play} 32. Rxb6 $1 $16 cxb6 33. Rxb6 Qxf5 34. exf5) 32... Rxh5 $11 {[%emt 0:00:03]} 33. Kg2 {[%emt 0:00:17]} (33. g4 $5 Rhh8 34. Kg2 $16) 33... Kd7 {[%emt 0:01:10]} 34. Nd2 {[%emt 0:02:05]} exd4 {[%emt 0:00:32]} 35. cxd4 {[%emt 0:00:41]} Nc6 $1 {[%emt 0:00:13]} 36. Nf3 {[%emt 0:04:59]} Nh4+ {[%emt 0:01:12]} 37. Nxh4 {[%emt 0:00:03]} Rxh4 {[%emt 0:00:04]} 38. f3 {[%emt 0:00:41]} Bxd4 {[%emt 0:00:22]} 39. Nxd4 {[%emt 0:01:12]} (39. Rc2 $14 Bc5 40. g4) 39... Nxd4 $11 {[%emt 0:00:04]} 40. Bg1 {[%emt 0:01:17]} Ne6 {[%emt 0:01:26]} 41. Be3 {[%emt 0:30:32]} Rh7 {[%emt 0:03:32]} 42. Rb8 {[%emt 0:00:00]} Rxb8 $1 {[%emt 0:10:49]} 43. Rxb8 {[%emt 0:00:00]} Rh5 {[%emt 0:00:02]} 44. Rb4 {[%emt 0:00:00]} Ra5 {[%emt 0:08:38]} 45. Rc4 {[%emt 0:00:00]} d5 {[%emt 0:00:43]} 46. exd5 {[%emt 0:00:00]} Rxd5 {[%emt 0:00:04]} 47. Kf2 {[%emt 0:00:00]} f5 {[%emt 0:02:25]} 48. Rh4 {[%emt 0:00:00]} Ke7 {[%emt 0:01:15]} 49. Ke2 {[%emt 0:00:00]} Kf7 {[%emt 0:00:18]} 50. Rb4 {[%emt 0:00:00]} Ke7 {[%emt 0:00:28]} 51. Rc4 {[%emt 0:00:00]} Kd7 {[%emt 0:03:13]} 52. Rh4 {[%emt 0:00:09]} Ke7 {[%emt 0:00:10]} 53. Rh5 {[%emt 0:00:45]} Kf7 {[%emt 0:01:00]} 54. Kf2 {[%emt 0:01:29]} Kg6 {[%emt 0:02:27]} 55. Rh4 {[%emt 0:01:19]} Kf7 {[%emt 0:00:19]} 56. Bc1 {[%emt 0:02:22]} Rc5 {[%emt 0:00:59]} 57. Bd2 {[%emt 0:00:11]} Rd5 {[%emt 0:00:49]} 58. Bc3 {[%emt 0:00:38]} Rd3 {[%emt 0:00:48]} 59. Rc4 {[%emt 0:02:14]} Ng5 {[%emt 0:00:50]} 60. Rxc7+ {[%emt 0:00:29]} Ke6 {[%emt 0:00:03]} 61. Ke2 {[%emt 0:00:32]} Rxf3 {[%emt 0:00:15]} 62. Be1 {[%emt 0:00:24]} Ra3 {[%emt 0:00:35]} 63. Rc6+ {[%emt 0:00:10]} Kd5 {[%emt 0:00:25]} 64. Rxa6 {[%emt 0:00:02]} Ne4 {[%emt 0:00:08]} 65. a5 {[%emt 0:00:12]} Nxg3+ {[%emt 0:00:13]} 66. Bxg3 {[%emt 0:00:04]} Rxg3 {[%emt 0:00:05]} 67. Rb6 {[%emt 0:00:06]} Ra3 {[%emt 0:00:04]} 68. a6 {[%emt 0:00:03]} Kc5 {[%emt 0:00:03]} 69. Rf6 {[%emt 0:00:04]} Kb5 {[%emt 0:00:03]} 70. Rxf5+ {[%emt 0:00:04]} Kxa6 {[%emt 0:00:03]} 71. Rf3 {[%emt 0:00:03]} Rxf3 {[%emt 0:00:05]} 72. Kxf3 {[%emt 0:00:05]} 1/2-1/2

[Event "45th FIDE Olympiad 2024"]
[Site "Budapest"]
[Date "2024.09.19"]
[Round "8.17"]
[White "Mompel Ferruz, Xavier"]
[Black "Ferster, Fabian"]
[Result "1/2-1/2"]
[WhiteElo "2273"]
[BlackElo "2184"]
[PlyCount "117"]
[EventDate "2024.09.05"]
[EventType "team-tourn"]
[EventCountry "HUN"]
[WhiteTeam "Equatorial Guinea"]
[BlackTeam "Liechtenstein"]
[BlackTeamCountry "LIE"]
[TimeControl "40/5400+30:1800+30"]

1. e4 c5 2. Nf3 Nf6 3. e5 Nd5 4. Nc3 e6 5. Ne4 d6 6. exd6 Bxd6 7. Nxd6+ Qxd6 8. g3 Nc6 9. d3 O-O 10. Bg2 b6 11. O-O Bb7 12. Nd2 Rad8 13. a4 Qe7 14. Nc4 Ba6 15. Bd2 Qf6 16. Qg4 h6 17. Ne3 Qd4 18. Qxd4 Nxd4 19. Bxd5 exd5 20. f3 Rfe8 21. a5 Bb5 22. axb6 axb6 23. Rae1 Rxe3 24. Rxe3 Nxc2 25. Re7 Bxd3 26. Rd1 c4 27. Bf4 b5 28. Bc7 Ra8 29. Rd7 Ra2 30. Be5 f6 31. Rxd5 fxe5 32. Rxb5 Nd4 33. Rb8+ Kh7 34. Kf2 Nb3 35. Rxb3 cxb3 36. Rxd3 Rxb2+ 37. Ke3 Rb1 38. Rd2 Kg6 39. Kd3 b2 40. Kc2 Rf1 41. Kxb2 Rxf3 42. Kc2 Kg5 43. Kd1 Kg4 44. Ke2 Ra3 45. Kf2 g5 46. Kg2 Kf5 47. Kf2 h5 48. Rb2 g4 49. Rc2 Rb3 50. Ra2 Ke4 51. Re2+ Kd4 52. Rd2+ Rd3 53. Ra2 e4 54. Ra4+ Ke5 55. Ra8 Rb3 56. Re8+ Kd4 57. Rd8+ Ke5 58. Re8+ Kd4 59. Rd8+ 1/2-1/2

[Event "45th FIDE Olympiad 2024"]
[Site "Budapest"]
[Date "2024.09.19"]
[Round "8.18"]
[White "Shevchenko, Kirill"]
[Black "Yu, Yangyi"]
[Result "0-1"]
[ECO "C65"]
[WhiteElo "2673"]
[BlackElo "2703"]
[Annotator "RC"]
[PlyCount "116"]
[EventDate "2024.09.05"]
[EventType "team-tourn"]
[EventCountry "HUN"]
[SourceTitle "playchess.com"]
[Source "ChessBase"]
[SourceQuality "1"]
[WhiteTeam "Romania"]
[BlackTeam "China"]
[WhiteTeamCountry "ROU"]
[BlackTeamCountry "CHN"]
[TimeControl "40/5400+30:1800+30"]

1. e4 {[%emt 0:00:12]} e5 {[%emt 0:00:11]} 2. Nf3 {[%emt 0:00:10]} Nc6 {[%emt 0:00:30]} 3. Bb5 {[%emt 0:00:07]} Nf6 {[%emt 0:00:39]} 4. d3 {[%emt 0:00:13]} Bc5 {[%emt 0:00:42]} 5. c3 {[%emt 0:00:44]} O-O {[%emt 0:00:32]} 6. O-O {[%emt 0:00:04]} d6 {[%emt 0:01:41]} 7. Nbd2 {[%emt 0:01:00]} Bb6 {[%emt 0:08:39]} 8. Nc4 {[%emt 0:06:21]} Ne7 {[%emt 0:00:53]} 9. Ba4 {[%emt 0:01:17]} Ng6 {[%emt 0:03:59]} 10. Re1 {[%emt 0:04:51]} Be6 {[%emt 0:06:32]} 11. Nxb6 {[%emt 0:04:40]} axb6 {[%emt 0:00:03]} 12. Bc2 {[%emt 0:00:13]} c5 {[%emt 0:01:40]} 13. h3 {[%emt 0:02:20]} h6 {[%emt 0:04:01]} 14. a3 {[%emt 0:17:20]} d5 {[%emt 0:01:27]} 15. d4 {[%emt 0:07:07]} exd4 {[%emt 0:14:41]} 16. e5 {[%emt 0:01:08]} Ne4 {[%emt 0:00:15]} 17. cxd4 {[%emt 0:02:08]} f5 {[%emt 0:02:11]} 18. exf6 {[%emt 0:15:08]} Qxf6 {[%emt 0:01:17]} 19. Bxe4 {[%emt 0:10:48]} dxe4 {[%emt 0:00:12]} 20. Rxe4 {[%emt 0:00:02]} Rad8 {[%emt 0:04:51]} 21. b4 {[%emt 0:07:24]} Bf5 {[%emt 0:07:09]} 22. Re1 {[%emt 0:00:35]} cxd4 {[%emt 0:01:15]} 23. Bb2 {[%emt 0:01:13]} Bxh3 {[%emt 0:21:22]} 24. Bxd4 {[%emt 0:01:40]} Qf5 {[%emt 0:04:23]} 25. gxh3 {[%emt 0:12:49]} Qxh3 {[%emt 0:00:01]} 26. Re3 {[%emt 0:01:12]} Nf4 {[%emt 0:02:13]} 27. Ne1 {[%emt 0:00:42]} Qf5 {[%emt 0:04:22]} 28. Kh2 {[%emt 0:01:18]} Rd5 {[%emt 0:02:18]} 29. Ra2 {[%emt 0:00:43]} Ne6 {[%emt 0:03:28]} 30. Rd2 {[%emt 0:01:09]} Qf4+ {[%emt 0:00:49]} 31. Rg3 {[%emt 0:00:22]} Nxd4 {[%emt 0:01:34]} 32. Qg4 {[%emt 0:00:21]} Qxg4 {[%emt 0:01:46]} 33. Rxg4 {[%emt 0:00:02]} Rfd8 {[%emt 0:00:06]} 34. Kg2 {[%emt 0:01:07]} b5 {[%emt 0:00:29]} 35. Nc2 {[%emt 0:00:45]} Nf5 {[%emt 0:00:19]} 36. Re2 {[%emt 0:00:22]} Rf8 {[%emt 0:01:25]} 37. Rge4 {[%emt 0:00:37]} Rd3 {[%emt 0:00:27]} 38. Ne3 {[%emt 0:00:31]} Rxa3 {[%emt 0:00:33]} 39. Nxf5 {[%emt 0:00:36]} Rxf5 {[%emt 0:00:01]} 40. Re8+ {[%emt 0:00:36]} Kh7 {[%emt 0:00:42]} 41. R2e3 {[%emt 0:07:00]} Ra6 {[%emt 0:06:11]} 42. R8e4 {[%emt 0:06:45]} Rg6+ {[%emt 0:02:47]} 43. Rg3 {[%emt 0:00:07]} Rgf6 {[%emt 0:00:15]} 44. f3 {[%emt 0:00:08]} Rf4 {[%emt 0:01:53]} 45. Re7 {[%emt 0:00:40]} Rg6 {[%emt 0:02:40]} 46. Rxb7 {[%emt 0:00:17]} Rxb4 {[%emt 0:00:05]} 47. Rxg6 {[%emt 0:00:06]} Kxg6 {[%emt 0:00:05]} 48. Kg3 {[%emt 0:00:04]} Kf6 {[%emt 0:05:38]} 49. Rb6+ {[%emt 0:00:52]} Kf5 {[%emt 0:00:34]} 50. Rd6 {[%emt 0:00:07]} Rb1 {[%emt 0:00:48]} 51. Rc6 {[%emt 0:00:35]} b4 {[%emt 0:00:54]} 52. Rc5+ {[%emt 0:01:42]} Ke6 {[%emt 0:00:06]} 53. f4 {[%emt 0:00:34]} b3 {[%emt 0:05:25]} 54. Rb5 {[%emt 0:00:11]} g5 {[%emt 0:01:49]} 55. Rb6+ {[%emt 0:03:57]} Kf5 {[%emt 0:00:27]} 56. Rb5+ {[%emt 0:00:05]} Ke4 {[%emt 0:00:41]} 57. f5 {[%emt 0:01:00]} b2 {[%emt 0:00:36]} 58. Kg2 {[%emt 0:00:42]} Re1 {[%emt 0:00:12]} 0-1

[Event "45th FIDE Olympiad 2024"]
[Site "Budapest"]
[Date "2024.09.19"]
[Round "8.18"]
[White "Krieger, Markus"]
[Black "Angel, Estanislao Gatjens C"]
[Result "1-0"]
[WhiteElo "2153"]
[BlackElo "1849"]
[PlyCount "89"]
[EventDate "2024.09.05"]
[EventType "team-tourn"]
[EventCountry "HUN"]
[WhiteTeam "Liechtenstein"]
[BlackTeam "Equatorial Guinea"]
[WhiteTeamCountry "LIE"]
[TimeControl "40/5400+30:1800+30"]

1. e4 c6 2. d4 d5 3. e5 Bf5 4. Nf3 e6 5. Be2 c5 6. c3 Nc6 7. O-O Bg4 8. Nbd2 Qb6 9. Re1 Nge7 10. dxc5 Qxc5 11. Qa4 Bxf3 12. Nxf3 Qa5 13. Qxa5 Nxa5 14. Nd4 a6 15. f4 g6 16. Be3 Nac6 17. Nxc6 bxc6 18. c4 Nf5 19. Bf2 Bb4 20. Red1 h5 21. Rac1 Kd7 22. g3 Rhb8 23. Rc2 Ba5 24. cxd5 cxd5 25. Rdc1 Rb7 26. b3 Ng7 27. Rc6 Ne8 28. Rxa6 Rxa6 29. Bxa6 Rc7 30. Bb5+ Kd8 31. Rxc7 Nxc7 32. Bc6 Ne8 33. Bc5 Ng7 34. Bb5 Kc7 35. Bf8 Bb6+ 36. Kf1 Nf5 37. Be8 Ne3+ 38. Ke2 h4 39. Bxf7 hxg3 40. hxg3 Kd7 41. Bxg6 Ng4 42. a4 Kd8 43. b4 Ne3 44. a5 Bd4 45. Bd3 1-0